fUSD/lending_fUSD_20250225
["ID","MTS","AMOUNT","RATE_DAILY","PERIOD"]
[354412915,1740478232186,-1188.40107155,0.000376,5]
[354412916,1740478232207,-4361.59892845,0.000376,5]
[354412917,1740478232227,-153.24,0.00037863,2]
[354412918,1740478232246,-205.04019374,0.000379,8]
[354412919,1740478232259,-23627.1015,0.000379,2]
[354412920,1740478232271,-9645.0,0.00038,7]
[354412921,1740478232284,-25262.66624143,0.000385,120]
[354412922,1740478232294,-531.06851034,0.000388,3]
[354412923,1740478232306,-172.63,0.00039271,2]
[354412924,1740478232317,-351.79707972,0.00039626,2]
[354412925,1740478232329,-1000.0,0.00039866,2]
[354412926,1740478232342,-12500.0,0.0004,120]
[354412927,1740478232354,-12500.0,0.00040163,120]
[354412928,1740478232365,-400.03,0.00040163,57]
[354412929,1740478232377,-12500.0,0.00040325,120]
[354412930,1740478232388,-12500.0,0.00040488,120]
[354412931,1740478232401,-514.0,0.0004064,30]
[354412932,1740478232412,-12500.0,0.0004065,120]
[354412933,1740478232424,-12500.0,0.00040813,120]
[354412934,1740478232436,-12500.0,0.00040975,120]
[354412935,1740478232447,-514.0,0.00041059,30]
[354412936,1740478232459,-3229.11574829,0.00041138,120]
[354412937,1740478232473,-358.18,0.00041138,120]
[354412938,1740478232487,-835.71451128,0.00041138,120]
[354412939,1740478236053,-8076.98974043,0.00041138,120]
[354412940,1740478236066,-4382.0,0.00041181,117]
[354412941,1740478236077,-250.0,0.00041293,2]
[354412942,1740478236088,-5069.60472957,0.000413,120]
[354412943,1740478236103,-500.0,0.000413,120]
[354412944,1740478236228,-150.0,0.0004065,120]
[354412945,1740478236239,-915.4644,0.000413,120]
[354412946,1740478236253,-6014.93087043,0.000413,120]
[354412947,1740478236267,-160.06,0.00041408,120]
[354412948,1740478236278,-12500.0,0.00041463,120]
[354412949,1740478236289,-514.0,0.00041478,30]
[354412950,1740478236301,-11174.04555854,0.00041625,120]
[354412951,1740478236316,-1325.95444146,0.00041625,120]
[354412952,1740478236326,-3120.98805854,0.00041788,120]
[354412953,1740478236347,-391.64415528,0.00041788,120]
[354412954,1740478236363,-6000.0,0.00041788,120]
[354412955,1740478236383,-2668.65371219,0.00041788,120]
[354412956,1740478236396,-318.71407399,0.00041788,120]
[354412957,1740478236407,-514.0,0.00041897,30]
[354412959,1740478236418,-359.82521518,0.0004195,120]
[354412961,1740478236430,-579.36353194,0.0004195,120]
[354412962,1740478236447,-474.0,0.0004195,120]
[354413009,1740478238002,-150.0,0.00041138,120]
[354413010,1740478238013,-6943.0101449,0.0004195,120]
[354413011,1740478238062,-4143.80110798,0.0004195,120]
[354413012,1740478238073,-12500.0,0.00042113,120]
[354413013,1740478238084,-163.35185924,0.00042119,28]
[354413014,1740478238097,-950.48822504,0.0004212,15]
[354413015,1740478238109,-3824.97651277,0.0004221,4]
[354413016,1740478238119,-19124.8825639,0.0004221,4]
[354413017,1740478238132,-758.29993907,0.00042219,71]
[354413018,1740478238141,-54309.55461487,0.00042219,61]
[354413019,1740478238153,-1783.81,0.00042219,61]
[354413020,1740478238263,-2008.68664904,0.00042219,61]
[354413021,1740478238275,-2565.6378859,0.00042219,61]
[354413022,1740478238286,-11474.9295383,0.00042265,4]
[354413023,1740478238299,-11768.2281133,0.00042275,120]
[354413033,1740478241904,-509.71888131,0.00042275,120]
[354413034,1740478241918,-222.05300539,0.00042275,120]
[354413035,1740478241928,-514.0,0.00042316,30]
[354413036,1740478241939,-11474.9295383,0.00042428,4]
[354413037,1740478241949,-12500.0,0.00042438,120]
[354413038,1740478241960,-950.48822504,0.00042518,15]
[354413039,1740478241971,-3824.97651277,0.00042566,4]
[354413040,1740478241981,-321.41874052,0.00042576,2]
[354413041,1740478241991,-11474.9295383,0.0004259,4]
[354413042,1740478242002,-2985.20443968,0.000426,120]
[354413043,1740478242015,-3290.3485075,0.000426,120]
[354413044,1740478242027,-2669.30664,0.000426,120]
[354413045,1740478242040,-395.4282089,0.000426,120]
[354413046,1740478242198,-150.0,0.00041625,120]
[354413047,1740478242210,-2206.82012759,0.000426,120]
[354413048,1740478242255,-952.89207633,0.000426,120]
[354413049,1740478242267,-1271.80792367,0.00042666,4]
[354413050,1740478242279,-8869.0,0.00042666,4]
[354413051,1740478242312,-8984.07464023,0.00042666,4]
[354413052,1740478242323,-600.57538325,0.000427,2]
[354413053,1740478242334,-514.0,0.00042735,30]
[354413054,1740478242344,-11474.9295383,0.00042752,4]
[354413055,1740478242355,-12500.0,0.00042763,120]
[354413056,1740478242365,-10312.92043822,0.00042915,4]
[354413154,1740478243255,-4672.27391525,0.00042915,4]
[354413156,1740478243267,-314.71169763,0.00042915,4]
[354413158,1740478243276,-950.48822504,0.00042916,15]
[354413180,1740478243477,-2630.89777729,0.00042925,120]
[354413183,1740478243496,-634.46219835,0.00042925,120]
[354413185,1740478243507,-1070.0,0.00042925,120]
[354413188,1740478243526,-150.0,0.0004195,120]
[354413190,1740478243536,-1808.41646,0.00042925,120]
[354413286,1740478244415,-6356.22356436,0.00042925,120]
[354413288,1740478244424,-11474.9295383,0.00043077,4]
[354413290,1740478244434,-12500.0,0.00043088,120]
[354413292,1740478244443,-19124.8825639,0.00043122,4]
[354413294,1740478244453,-514.0,0.00043154,30]
[354413296,1740478244463,-11474.9295383,0.0004324,4]
[354413298,1740478244472,-12500.0,0.0004325,120]
[354413300,1740478244481,-950.48822504,0.00043313,15]
[354413302,1740478244490,-15299.9060511,0.00043403,4]
[354413304,1740478244499,-12500.0,0.00043413,120]
[354413306,1740478244508,-11474.9295383,0.00043565,4]
[354413308,1740478244518,-12500.0,0.00043575,120]
[354413310,1740478244527,-15299.9060511,0.00043578,4]
[354413312,1740478244536,-200.0,0.000437,15]
[354413314,1740478244545,-950.48822504,0.00043711,15]
[354413316,1740478244554,-12500.0,0.00043738,120]
[354413318,1740478244563,-23900.0,0.00043764,2]
[354413320,1740478244572,-500.0,0.000438,15]
[354413322,1740478244581,-281.29686783,0.000438,20]
[354413324,1740478244591,-200.0,0.00043815,120]
[354413326,1740478244600,-281.29686783,0.00043856,20]
[354413328,1740478244609,-12500.0,0.000439,120]
[354413330,1740478244618,-800.0,0.000439,16]
[354413332,1740478244628,-281.29686783,0.00043912,20]
[354413334,1740478244637,-192.01764457,0.0004398,4]
[354413336,1740478244647,-192.01764457,0.0004399,4]
[354413338,1740478244656,-768.07057828,0.0004399,4]
[354413340,1740478244665,-160.06,0.00043992,120]
[354413342,1740478244674,-100000.0,0.00044,50]
[354413344,1740478244683,-2324.0,0.00044,7]
[354413346,1740478244693,-220.0,0.00044,120]
[354413348,1740478244702,-24260.59820834,0.00044,120]
[354413486,1740478246216,-1000.0,0.00041208,2]
[354413487,1740478246227,-150.0,0.00042663,30]
[354413488,1740478246237,-6794.56179166,0.00044,120]
[354413489,1740478246248,-14215.43820834,0.00044,120]
[354413490,1740478246260,-1065.5781767,0.00044,120]
[354413491,1740478246271,-877.39099859,0.00044,120]
[354413492,1740478246308,-150.0,0.00042275,120]
[354413493,1740478246317,-282.46042316,0.00044,120]
[354413494,1740478246446,-1297.57749495,0.00044,120]
[354413495,1740478246458,-19428.79286226,0.00044,120]
[354414266,1740478984570,-1300.0,0.0002,30]
[354414268,1740479014337,-1500.0,0.0002,30]
[354414269,1740479022909,-1300.0,0.0002,30]
[354414330,1740479375931,-4500.89640463,9.899e-05,2]
[354414332,1740479375993,-4500.89640463,9.899e-05,2]
[354414333,1740479376048,-4500.89640463,9.899e-05,2]
[354414334,1740479376106,-4500.89640463,9.899e-05,2]
[354414335,1740479376164,-4500.89640463,9.899e-05,2]
[354414336,1740479376216,-1579.32438229,9.899e-05,2]
[354414339,1740479404558,589.65093369,0.00022431,120]
[354414675,1740479432323,-1137.68592785,9.899e-05,2]
[354414677,1740479432333,-1066.76757019,0.0001,2]
[354414680,1740479432344,-2102.54975196,0.0001,2]
[354414685,1740479432438,-314.43951073,0.0001,2]
[354414687,1740479432450,-4699.69194116,0.0001,2]
[354414688,1740479432461,-1025.55818525,0.0001,2]
[354414715,1740479433286,-3087.34795571,0.0001,2]
[354414717,1740479433299,-44100.0977903,0.0001,2]
[354414720,1740479433345,-2335.83331472,0.0001,2]
[354414721,1740479433357,-5835.77814978,0.0001,2]
[354414723,1740479433369,-1903.84,0.0001,2]
[354414724,1740479433380,-1375.23980844,0.0001,2]
[354414725,1740479433392,-270.4725,0.0001,2]
[354414727,1740479433409,-543.46441461,0.0001,2]
[354414730,1740479433468,-32788.6155285,0.0001,2]
[354414731,1740479433480,-2457.49286247,0.0001,2]
[354414733,1740479433493,-502.85226426,0.0001,2]
[354414734,1740479433505,-6200.59074148,0.0001,2]
[354414736,1740479433517,-2021.717,0.0001,2]
[354414737,1740479433530,-4022.12181233,0.0001,2]
[354414739,1740479433541,-171095.87818768,0.0001,2]
[354414905,1740479438142,-7008.67316955,0.0001,2]
[354414906,1740479438154,-348.72240944,0.0001,2]
[354414909,1740479438208,-266.202,0.0001,2]
[354414913,1740479438272,-733.81737345,0.0001,2]
[354414918,1740479438395,-519.425,0.0001,2]
[354414920,1740479438407,-4411.7058,0.0001,2]
[354414922,1740479438463,-129645.18533594,0.0001,2]
[354414924,1740479438473,-321.41874051,0.000137,2]
[354414925,1740479438483,-475.24411252,0.000138,2]
[354414926,1740479438492,-204.79492018,0.000139,2]
[354414928,1740479438502,-80026.76872971,0.000139,2]
[354414929,1740479438511,-204.79492006,0.000153,2]
[354414930,1740479438520,-204.79492006,0.000167,2]
[354414932,1740479438530,-475.24411252,0.00017204,2]
[354414933,1740479438539,-174.71037224,0.00017588,2]
[354414935,1740479438549,-3861.82381441,0.00017688,3]
[354414936,1740479438559,-500.0,0.00018,2]
[354414937,1740479438569,-204.79492006,0.000181,2]
[354414939,1740479438580,-1000.0,0.00018548,2]
[354414940,1740479438589,-2929.08706079,0.000195,2]
[354414941,1740479438599,-204.79492006,0.000195,2]
[354414943,1740479438610,-439.99709354,0.0001955,2]
[354414944,1740479438622,-294.9104506,0.00019726,2]
[354414946,1740479438634,-32060.00524086,0.000199,2]
[354414947,1740479438645,-176.052,0.00019999,2]
[354414948,1740479438655,-737.67347183,0.00019999,2]
[354414949,1740479438664,-472.702,0.00019999,2]
[354414951,1740479438674,-57283.6638696,0.0002,30]
[354414952,1740479438688,-150.0,0.0002,2]
[354414953,1740479438697,-2086.66358467,0.0002,4]
[354414955,1740479438708,-1424.195,0.0002,10]
[354414956,1740479438718,-3918.21883261,0.0002,30]
[354414957,1740479438728,-475.24411252,0.00020608,2]
[354414959,1740479438737,-632.33,0.00020656,2]
[354414960,1740479438746,-204.79492006,0.000209,2]
[354414961,1740479438756,-1000.0,0.00020943,2]
[354414963,1740479438766,-500.0,0.00021061,2]
[354414964,1740479438775,-500.0,0.00021161,2]
[354414966,1740479438785,-500.0,0.00021261,2]
[354414967,1740479438794,-500.0,0.00021361,2]
[354414968,1740479438804,-204.79492006,0.000223,3]
[354414970,1740479438813,-91841.49176482,0.00022431,30]
[354414971,1740479438822,-26163.8058597,0.00022431,30]
[354414973,1740479438842,-291.61337449,0.00022431,30]
[354414974,1740479438854,-8110.27827666,0.00022431,30]
[354414976,1740479438867,-6459.4663461,0.00022431,30]
[354414977,1740479438888,-1000.0,0.00023561,2]
[354414979,1740479438899,-204.79492006,0.000237,3]
[354414980,1740479438910,-354.34160394,0.0002399,2]
[354414981,1740479438920,-140.80601571,0.00024,5]
[354414983,1740479438938,-238.34395383,0.00024,5]
[354414984,1740479438948,-627.48915014,0.00024,3]
[354414985,1740479438961,-835.81033219,0.00024,3]
[354415039,1740479440414,-153.95,0.00017446,2]
[354415040,1740479440427,-153.95,0.00019836,2]
[354415041,1740479440440,-153.95,0.00022225,2]
[354415043,1740479440450,-419.15,0.00024,3]
[354415044,1740479440462,-4372.7,0.00024,3]
[354415046,1740479440477,-1765.9642,0.00024,3]
[354415049,1740479440543,-498.51059502,0.00024,3]
[354415050,1740479440555,-365.78550015,0.00024,3]
[354415052,1740479440566,-877.67932533,0.00024,3]
[354415053,1740479440576,-61925.00082396,0.00024,3]
[354415055,1740479440586,-26893.28931059,0.00024,30]
[354415056,1740479440608,-4403.9664285,0.00024,30]
[354415061,1740479440707,-596.48,0.00024,30]
[354415062,1740479440719,-3412.434658,0.00024,30]
[354415064,1740479440731,-1774.66224,0.00024,30]
[354415065,1740479440743,-2049.426935,0.00024,30]
[354415066,1740479440754,-4400.0,0.00024,30]
[354415068,1740479440765,-8787.5788,0.00024,30]
[354415071,1740479440827,-528.402,0.00024,30]
[354415188,1740479443387,-134370.11691104,0.00024,30]
[354415190,1740479443397,-517.06828866,0.00024,2]
[354415191,1740479443407,-475.24411252,0.00024012,2]
[354415192,1740479443417,-10445.19476231,0.000245,2]
[354415194,1740479443426,-153.95,0.00024615,2]
[354415195,1740479443437,-204.79492006,0.000251,4]
[354415197,1740479443451,-2000.0,0.00025391,2]
[354415198,1740479443461,-1000.0,0.00026179,2]
[354415199,1740479443470,-150.0,0.000265,2]
[354415201,1740479443480,-204.79492006,0.000265,4]
[354415202,1740479443490,-153.95,0.00027005,2]
[354415203,1740479443499,-475.24411252,0.00027416,2]
[354415205,1740479443508,-356.06,0.000278,7]
[354415206,1740479443519,-204.79492006,0.000279,4]
[354415208,1740479443529,-1000.0,0.00028797,2]
[354415209,1740479443538,-632.33,0.00028918,2]
[354415210,1740479443548,-296.72,0.000292,14]
[354415212,1740479443558,-204.79492006,0.000293,5]
[354415213,1740479443567,-153.95,0.00029394,2]
[354415214,1740479443578,-517.0682886,0.00029414,2]
[354415216,1740479443587,-204.79492006,0.000307,5]
[354415217,1740479443597,-475.24411252,0.00030821,2]
[354415218,1740479443608,-1000.0,0.00031415,2]
[354415220,1740479443621,-153.95,0.00031784,2]
[354415221,1740479443630,-200.0,0.00032,30]
[354415222,1740479443640,-204.79492006,0.000321,6]
[354415224,1740479443650,-784.0,0.00032279,2]
[354415225,1740479443661,-1428.162,0.00032279,2]
[354415226,1740479443670,-955.037,0.00032279,2]
[354415228,1740479443680,-540.906,0.00032279,2]
[354415229,1740479443693,-1267.0,0.00032279,2]
[354415231,1740479443703,-4033.0,0.00032279,2]
[354415232,1740479443714,-2027.0,0.00032279,2]
[354415233,1740479443724,-151.628,0.00032279,2]
[354415235,1740479443734,-1414.347,0.00032279,2]
[354415236,1740479443743,-2067.964,0.00032279,2]
[354415237,1740479443753,-204.79492006,0.000335,6]
[354415239,1740479443762,-153.95,0.00034173,2]
[354415240,1740479443771,-475.24411252,0.00034225,2]
[354415241,1740479443781,-517.0682886,0.00034829,7]
[354415243,1740479443791,-204.79492006,0.000349,7]
[354415244,1740479443806,-200.0,0.0003498,2]
[354415252,1740479444007,-4820.24365031,0.00034991,2]
[354415254,1740479444024,-2275.67634969,0.00034991,2]
[354415255,1740479444034,-4809.25469871,0.00035,120]
[354415256,1740479444044,-10000.0,0.00035,2]
[354415258,1740479444054,-41820.45183786,0.00035,2]
[354415259,1740479444064,-784.0,0.00035279,2]
[354415260,1740479444074,-909.0,0.00035279,2]
[354415262,1740479444087,-540.0,0.00035279,2]
[354415263,1740479444096,-1267.0,0.00035279,2]
[354415265,1740479444106,-4031.0,0.00035279,2]
[354415266,1740479444116,-159.02,0.00035283,2]
[354415267,1740479444126,-1000.0,0.00035395,2]
[354415269,1740479444136,-613.0,0.00035397,2]
[354415270,1740479444146,-150.0,0.00036292,30]
[354415271,1740479444157,-156.11955681,0.00036292,30]
[354415272,1740479444166,-150.0,0.00036292,30]
[354415274,1740479444176,-150.0,0.00036292,30]
[354415275,1740479444190,-1756.74007525,0.00036292,30]
[354415276,1740479444200,-441.80039965,0.00036292,30]
[354415278,1740479444210,-14817.23067048,0.00036292,30]
[354415279,1740479444220,-204.79492006,0.000363,7]
[354415280,1740479444230,-153.95,0.00036563,2]
[354415282,1740479444240,-475.24411252,0.00037629,2]
[354415283,1740479444250,-204.79492006,0.000377,7]
[354415284,1740479444261,-927.52,0.00038205,2]
[354415286,1740479444272,-166.39,0.0003828,2]
[354415287,1740479444282,-150.0,0.000385,2]
[354415288,1740479444293,-274.58887544,0.000388,120]
[354415290,1740479444303,-153.95,0.00038953,2]
[354415291,1740479444313,-204.79492006,0.000391,8]
[354415292,1740479444323,-2015.81,0.00039112,2]
[354415293,1740479444333,-168.12,0.00039788,2]
[354415295,1740479444343,-250.0,0.00039826,2]
[354415296,1740479444354,-400.0,0.000399,14]
[354415298,1740479444364,-6014.93,0.0004,120]
[354415299,1740479444373,-3377.09932263,0.0004,120]
[354415300,1740479444386,-509.471564,0.0004,120]
[354415301,1740479444398,-1842.457836,0.0004,120]
[354415341,1740479445379,-379.70555641,0.0004,120]
[354415342,1740479445391,-3368.91730474,0.0004,120]
[354415344,1740479445403,-532.31089,0.0004,120]
[354415345,1740479445416,-881.01,0.0004,120]
[354415384,1740479446330,-500.0,0.0004,120]
[354415394,1740479446390,-400.40000008,0.0004,120]
[354415396,1740479446402,-708.62752614,0.0004,120]
[354415399,1740479446412,-12500.0,0.0004,120]
[354415401,1740479446422,-12500.0,0.0004,120]
[354415402,1740479446431,-723.62,0.0004,120]
[354415404,1740479446443,-12500.0,0.0004,120]
[354415405,1740479446452,-12500.0,0.0004,120]
[354415407,1740479446462,-482.81744776,0.0004,4]
[354415410,1740479446472,-4973.8776551,0.0004,120]
[354415412,1740479446481,-12499.99,0.0004,120]
[354415414,1740479446491,-11174.05,0.00040163,120]
[354415417,1740479446501,-12500.0,0.00040163,120]
[354415418,1740479446510,-12500.0,0.00040163,120]
[354415419,1740479446520,-12500.0,0.00040163,120]
[354415421,1740479446529,-7843.57,0.00040163,120]
[354415422,1740479446538,-517.0682886,0.00040243,12]
[354415423,1740479446548,-12500.0,0.00040325,120]
[354415425,1740479446557,-12500.0,0.00040325,120]
[354415426,1740479446566,-12500.0,0.00040325,120]
[354415427,1740479446576,-12500.0,0.00040488,120]
[354415429,1740479446586,-2724.48,0.00040488,120]
[354415430,1740479446595,-12500.0,0.00040488,120]
[354415431,1740479446605,-204.79492006,0.000405,8]
[354415433,1740479446615,-12500.0,0.0004065,120]
[354415434,1740479446624,-12500.0,0.0004065,120]
[354415435,1740479446633,-12500.0,0.00040813,120]
[354415437,1740479446646,-12500.0,0.00040813,120]
[354415438,1740479446656,-12500.0,0.00040975,120]
[354415439,1740479446666,-12500.0,0.00040975,120]
[354415441,1740479446676,-475.24411252,0.00041033,15]
[354415442,1740479446687,-500.0,0.00041095,2]
[354415443,1740479446697,-500.0,0.00041095,2]
[354415445,1740479446707,-500.0,0.00041095,2]
[354415446,1740479446718,-2839.51,0.00041095,2]
[354415447,1740479446727,-500.0,0.00041095,2]
[354415449,1740479446736,-500.0,0.00041095,2]
[354415450,1740479446745,-500.0,0.00041095,2]
[354415451,1740479446754,-500.0,0.00041095,2]
[354415453,1740479446764,-500.0,0.00041095,2]
[354415454,1740479446773,-3158.26,0.00041095,2]
[354415455,1740479446783,-500.0,0.00041095,2]
[354415457,1740479446793,-500.0,0.00041095,2]
[354415458,1740479446803,-2032.94,0.00041095,2]
[354415459,1740479446812,-500.0,0.00041095,2]
[354415461,1740479446821,-500.0,0.00041095,2]
[354415462,1740479446830,-1101.53,0.00041095,2]
[354415463,1740479446839,-519.59274307,0.00041095,2]
[354415465,1740479446848,-486.92212342,0.00041095,2]
[354415466,1740479446858,-500.0,0.00041095,2]
[354415467,1740479446867,-240.42979095,0.00041095,2]
[354415469,1740479446877,-2576.1,0.00041095,2]
[354415470,1740479446887,-500.0,0.00041095,2]
[354415471,1740479446896,-500.0,0.00041095,2]
[354415473,1740479446906,-500.0,0.00041095,2]
[354415474,1740479446916,-500.0,0.00041095,2]
[354415475,1740479446926,-500.0,0.00041095,2]
[354415477,1740479446936,-500.0,0.00041095,2]
[354415478,1740479446949,-613.02,0.00041095,2]
[354415479,1740479446959,-500.0,0.00041095,2]
[354415481,1740479446969,-500.0,0.00041095,2]
[354415482,1740479446978,-500.0,0.00041095,2]
[354415483,1740479446988,-500.0,0.00041095,2]
[354415485,1740479446998,-500.0,0.00041095,2]
[354415486,1740479447007,-500.0,0.00041095,2]
[354415487,1740479447017,-500.0,0.00041095,2]
[354415489,1740479447027,-500.0,0.00041095,2]
[354415490,1740479447036,-500.0,0.00041095,2]
[354415491,1740479447046,-500.0,0.00041095,2]
[354415493,1740479447056,-500.0,0.00041095,2]
[354415494,1740479447065,-516.77,0.00041095,2]
[354415496,1740479447075,-500.0,0.00041095,2]
[354415497,1740479447084,-3096.64,0.00041095,2]
[354415498,1740479447093,-3096.64,0.00041095,2]
[354415500,1740479447102,-3096.64,0.00041095,2]
[354415501,1740479447112,-3096.64,0.00041095,2]
[354415502,1740479447121,-1217.29,0.00041095,2]
[354415504,1740479447130,-500.0,0.00041095,2]
[354415505,1740479447140,-500.0,0.00041095,2]
[354415506,1740479447150,-500.0,0.00041095,2]
[354415508,1740479447160,-500.0,0.00041095,2]
[354415509,1740479447169,-500.0,0.00041095,2]
[354415510,1740479447179,-500.0,0.00041095,2]
[354415512,1740479447191,-500.0,0.00041095,2]
[354415513,1740479447201,-500.0,0.00041095,2]
[354415514,1740479447211,-500.0,0.00041095,2]
[354415516,1740479447221,-17.67131179,0.00041095,2]
[354415517,1740479447234,-482.32868821,0.00041095,2]
[354415518,1740479447244,-500.0,0.00041095,2]
[354415520,1740479447254,-500.0,0.00041095,2]
[354415521,1740479447264,-494.76455279,0.00041095,2]
[354415522,1740479447274,-505.04362609,0.00041095,2]
[354415524,1740479447283,-1900.96213291,0.00041095,2]
[354415525,1740479447299,-100.35786709,0.00041095,2]
[354415527,1740479447308,-167.07513291,0.00041095,2]
[354415528,1740479447323,-237.71460109,0.00041095,2]
[354415529,1740479447332,-900.27,0.00041095,2]
[354415531,1740479447342,-500.0,0.00041095,2]
[354415532,1740479447352,-500.0,0.00041095,2]
[354415533,1740479447362,-1025.99,0.00041095,2]
[354415535,1740479447371,-823.67,0.00041095,2]
[354415536,1740479447380,-200.337007,0.00041095,2]
[354415537,1740479447390,-500.0,0.00041095,2]
[354415539,1740479447399,-500.0,0.00041095,2]
[354415540,1740479447409,-500.0,0.00041095,2]
[354415541,1740479447419,-500.0,0.00041095,2]
[354415543,1740479447428,-1407.66,0.00041095,2]
[354415544,1740479447438,-2921.62,0.00041095,2]
[354415545,1740479447447,-3778.136801,0.00041095,2]
[354415547,1740479447457,-500.0,0.00041095,2]
[354415548,1740479447467,-500.0,0.00041095,2]
[354415549,1740479447476,-500.0,0.00041095,2]
[354415551,1740479447486,-500.0,0.00041095,2]
[354415552,1740479447496,-500.0,0.00041095,2]
[354415553,1740479447506,-501.06604597,0.00041095,2]
[354415555,1740479447515,-153.5922247,0.00041095,2]
[354415556,1740479447524,-500.0,0.00041095,2]
[354415557,1740479447535,-200.0,0.000411,2]
[354415559,1740479447546,-500.0,0.00041137,2]
[354415560,1740479447556,-500.0,0.00041137,2]
[354415561,1740479447566,-500.0,0.00041137,2]
[354415563,1740479447575,-501.38815268,0.00041137,2]
[354415564,1740479447584,-500.0,0.00041137,2]
[354415565,1740479447594,-1549.37,0.00041137,2]
[354415567,1740479447604,-500.0,0.00041137,2]
[354415568,1740479447614,-500.0,0.00041137,2]
[354415570,1740479447628,-500.0,0.00041137,2]
[354415571,1740479447638,-500.0,0.00041137,2]
[354415572,1740479447647,-622.62,0.00041137,2]
[354415573,1740479447658,-500.0,0.00041137,2]
[354415575,1740479447670,-500.0,0.00041137,2]
[354415576,1740479447679,-500.0,0.00041137,2]
[354415578,1740479447691,-500.79747314,0.00041137,2]
[354415579,1740479447700,-500.0,0.00041137,2]
[354415580,1740479447710,-500.0,0.00041137,2]
[354415582,1740479447720,-500.0,0.00041137,2]
[354415583,1740479447729,-500.0,0.00041137,2]
[354415584,1740479447739,-502.88443545,0.00041137,2]
[354415586,1740479447748,-500.0,0.00041137,2]
[354415587,1740479447757,-503.29678603,0.00041137,2]
[354415588,1740479447766,-500.0,0.00041137,2]
[354415589,1740479447775,-500.0,0.00041137,2]
[354415591,1740479447784,-500.0,0.00041137,2]
[354415592,1740479447793,-500.0,0.00041137,7]
[354415594,1740479447803,-1765.32,0.00041137,2]
[354415595,1740479447812,-500.0,0.00041137,2]
[354415596,1740479447821,-500.0,0.00041137,2]
[354415598,1740479447831,-3574.52,0.00041137,2]
[354415599,1740479447840,-625.28,0.00041137,2]
[354415600,1740479447854,-500.0,0.00041137,2]
[354415602,1740479447864,-500.0,0.00041137,2]
[354415603,1740479447873,-500.0,0.00041137,2]
[354415604,1740479447883,-753.81,0.00041137,2]
[354415605,1740479447893,-500.0,0.00041137,2]
[354415606,1740479447902,-500.35313345,0.00041137,2]
[354415607,1740479447912,-500.0,0.00041137,2]
[354415608,1740479447921,-12500.0,0.00041138,120]
[354415609,1740479447931,-12500.0,0.00041138,120]
[354415610,1740479447944,-500.0,0.00041234,2]
[354415611,1740479447953,-12500.0,0.000413,120]
[354415612,1740479447962,-1523.94,0.000413,120]
[354415613,1740479447972,-153.95,0.00041342,2]
[354415615,1740479447981,-500.0,0.00041369,2]
[354415616,1740479447991,-500.0,0.00041369,2]
[354415617,1740479448000,-500.0,0.00041369,2]
[354415619,1740479448011,-2839.51,0.00041369,2]
[354415620,1740479448021,-500.0,0.00041369,2]
[354415621,1740479448031,-500.0,0.00041369,2]
[354415623,1740479448041,-500.0,0.00041369,2]
[354415624,1740479448051,-500.0,0.00041369,2]
[354415625,1740479448061,-3158.26,0.00041369,2]
[354415627,1740479448070,-500.0,0.00041369,2]
[354415628,1740479448080,-604.2,0.00041369,2]
[354415629,1740479448090,-2032.94,0.00041369,2]
[354415631,1740479448100,-500.0,0.00041369,2]
[354415632,1740479448109,-500.0,0.00041369,2]
[354415633,1740479448120,-1101.53,0.00041369,2]
[354415635,1740479448130,-249.8,0.00041369,2]